fUSD/lending_fUSD_20240404
["ID","MTS","AMOUNT","RATE_DAILY","PERIOD"]
[321482421,1712232237043,730.34386408,0.00024204,2]
[321482422,1712232261555,178.52,0.00023775,2]
[321482423,1712232296113,578.13298522,0.00023775,2]
[321482424,1712232296134,2000.0,0.00023775,2]
[321482425,1712232296156,2000.0,0.00023775,2]
[321482426,1712232296177,2000.0,0.00023775,2]
[321482427,1712232296197,2000.0,0.00023775,2]
[321482428,1712232296218,2000.0,0.00023775,2]
[321482429,1712232296240,2000.0,0.00023775,2]
[321482430,1712232296261,2000.0,0.00023775,2]
[321482431,1712232296282,2000.0,0.00023775,2]
[321482432,1712232296304,2000.0,0.00023775,2]
[321482433,1712232296329,1038.15136539,0.00023775,2]
[321482434,1712232297713,961.84863461,0.00023775,2]
[321482435,1712232297735,75.82338521,0.00023775,2]
[321482436,1712232298507,407.30557576,0.00023062,2]
[321482437,1712232299727,1516.87103903,0.00023775,2]
[321482438,1712232299748,2000.0,0.00023775,2]
[321482439,1712232299770,2000.0,0.00023775,2]
[321482440,1712232299791,2000.0,0.00023775,2]
[321482441,1712232299813,2000.0,0.00023775,2]
[321482442,1712232299834,2000.0,0.00023775,2]
[321482443,1712232299856,2000.0,0.00023775,2]
[321482444,1712232299878,2000.0,0.00023775,2]
[321482445,1712232299903,2000.0,0.00023775,2]
[321482446,1712232299925,2000.0,0.00023775,2]
[321482447,1712232299947,589.76278721,0.00023775,2]
[321482448,1712232300346,1410.23721279,0.00017831,2]
[321482449,1712232300370,214.45296291,0.00017831,2]
[321482450,1712232304173,390.55,0.00023775,2]
[321482451,1712232305761,1394.99703709,0.00023775,2]
[321482452,1712232305783,72.2545901,0.00023775,2]
[321482453,1712232306258,1927.7454099,0.00023775,2]
[321482454,1712232306279,2000.0,0.00023775,2]
[321482455,1712232306300,2000.0,0.00023775,2]
[321482456,1712232306322,2000.0,0.00023775,2]
[321482457,1712232306348,2000.0,0.00023775,2]
[321482458,1712232306370,2000.0,0.00023775,2]
[321482459,1712232306391,2000.0,0.00023775,2]
[321482460,1712232306411,2000.0,0.00023775,2]
[321482461,1712232306433,2000.0,0.00023775,2]
[321482462,1712232306456,2000.0,0.00023775,2]
[321482463,1712232331138,-410.913049,0.00023062,2]
[321482464,1712232331158,-2941.68090911,0.00023775,2]
[321482467,1712232428153,-250.0,0.00023723,2]
[321482468,1712232428179,-173.57,0.00023723,2]
[321482469,1712232428200,-359.4,0.00023738,2]
[321482470,1712232428221,-29.82744757,0.00023743,2]
[321482471,1712232448116,-120.17255243,0.00023743,2]
[321482472,1712232448138,-346.13141286,0.00023744,2]
[321482473,1712232448166,-327.3729441,0.00023744,2]
[321482486,1712232612609,178.96,0.0001899,2]
[321482503,1712232632404,-167.9,0.00023719,2]
[321482505,1712232632413,-586.11,0.00023734,2]
[321482506,1712232632424,-3775.43,0.00023738,2]
[321482507,1712232632434,-23226.49564304,0.00023744,2]
[321482508,1712232632444,-7115.62598232,0.00023744,2]
[321482509,1712232632739,-351.68374011,0.00023744,2]
[321482519,1712232632932,-979.38,0.00023744,2]
[321482529,1712232638369,-11169.59462818,0.00023744,2]
[321482531,1712232638379,-291.89557096,0.00023744,2]
[321482532,1712232638389,-1037.67201982,0.00023744,2]
[321482533,1712232638400,-150.0,0.00023744,2]
[321482534,1712232638411,-150.0,0.00023744,2]
[321482535,1712232638420,-151.0525126,0.00023744,2]
[321482536,1712232638431,-1735.38553257,0.00023775,2]
[321482537,1712232638441,-450.0,0.00023775,2]
[321482538,1712232638450,-967.61955222,0.00023775,2]
[321482539,1712232638460,-158.83,0.00023916,2]
[321482540,1712232638470,-1088.54,0.00024205,2]
[321482541,1712232638479,-1088.54,0.00024211,2]
[321482542,1712232638489,-499.99,0.00024211,2]
[321482543,1712232638695,-1082.97953659,0.00024218,2]
[321482544,1712232638725,-5.56046341,0.00024218,2]
[321482545,1712232638735,-1088.54,0.00024224,2]
[321482546,1712232638746,-1088.54,0.0002423,2]
[321482547,1712232638755,-1088.54,0.00024237,2]
[321482548,1712232638765,-1088.54,0.00024243,2]
[321482549,1712232638774,-1088.54,0.00024249,2]
[321482551,1712232638783,-1088.54,0.00024256,2]
[321482553,1712232638793,-1088.54,0.00024262,2]
[321482555,1712232638802,-1088.54,0.00024268,2]
[321482557,1712232638812,-1088.54,0.00024275,2]
[321482558,1712232638821,-399.39961289,0.00024281,2]
[321482559,1712232638833,-689.14038711,0.00024281,2]
[321482560,1712232638843,-251.19916289,0.00024287,2]
[321482562,1712232638856,-837.34083711,0.00024287,2]
[321482564,1712232638866,-648.81755982,0.00024496,2]
[321482565,1712232638876,-150.94096123,0.00024539,2]
[321482566,1712232638936,-7.88903877,0.00024539,2]
[321482567,1712232638946,-800.0,0.00024877,2]
[321482568,1712232638955,-426.25322708,0.00024897,2]
[321482569,1712232638966,-189.38007095,0.00024898,2]
[321482570,1712232638976,-348.52953501,0.00024898,2]
[321482571,1712232638986,-2649.76101953,0.00024898,2]
[321482572,1712232638995,-2237.57920053,0.00024898,2]
[321482573,1712232639004,-1042.32000768,0.00024898,2]
[321482574,1712232639013,-384.15804742,0.00024898,2]
[321482575,1712232639023,-711.1799,0.00024898,2]
[321482576,1712232639033,-1042.32000763,0.00024898,2]
[321482577,1712232639042,-2649.76101952,0.00024898,2]
[321482578,1712232639053,-2237.57920045,0.00024898,2]
[321482579,1712232639063,-1042.32000763,0.00024898,2]
[321482580,1712232639072,-2649.76101952,0.00024898,2]
[321482581,1712232639081,-2237.57920045,0.00024898,2]
[321482582,1712232639091,-348.52953498,0.00024899,2]
[321482583,1712232639101,-1042.32000763,0.00024899,2]
[321482584,1712232639111,-2649.76101952,0.00024899,2]
[321482585,1712232639121,-2237.57920045,0.00024899,2]
[321482586,1712232639131,-1042.32000763,0.00024899,2]
[321482587,1712232639140,-2649.76101952,0.00024899,2]
[321482588,1712232639149,-2237.57920045,0.00024899,2]
[321482589,1712232639159,-1042.32000763,0.00024899,2]
[321482590,1712232639167,-348.52953498,0.00024899,2]
[321482591,1712232639177,-1042.32000763,0.00024899,2]
[321482592,1712232639189,-2649.76101952,0.00024899,2]
[321482593,1712232639198,-2237.57920045,0.00024899,2]
[321482594,1712232639207,-1042.32000763,0.00024899,2]
[321482595,1712232639217,-2649.76101952,0.00024899,2]
[321482596,1712232639227,-2237.57920045,0.00024899,2]
[321482597,1712232639239,-1042.32000763,0.00024899,2]
[321482598,1712232639248,-348.52953498,0.000249,2]
[321482599,1712232639259,-2649.76101952,0.000249,2]
[321482600,1712232639271,-2237.57920045,0.000249,2]
[321482601,1712232639281,-1042.32000763,0.000249,2]
[321482602,1712232639291,-2649.76101952,0.000249,2]
[321482603,1712232639302,-2237.57920045,0.000249,2]
[321482604,1712232639310,-1042.32000763,0.000249,2]
[321482605,1712232639320,-348.52953498,0.000249,2]
[321482606,1712232639329,-2649.76101952,0.000249,2]
[321482607,1712232639338,-2237.57920045,0.000249,2]
[321482608,1712232639347,-1042.32000763,0.000249,2]
[321482609,1712232639357,-3169.2,0.000249,2]
[321482610,1712232639367,-2197.24144358,0.0002497,2]
[321482611,1712232639377,-194.89168371,0.00024988,2]
[321482612,1712232639386,-194.89168371,0.0002499,2]
[321482613,1712232639395,-2261.25389528,0.00024996,2]
[321482614,1712232639405,-199.42870862,0.00024996,2]
[321482615,1712232639414,-1215.11058363,0.00024996,2]
[321482616,1712232639425,-661.25913268,0.00024996,2]
[321482617,1712232639435,-3920.38592727,0.00024996,2]
[321482618,1712232639444,-810.45652387,0.00024996,2]
[321482619,1712232639453,-642.62784697,0.00024996,2]
[321482620,1712232639463,-155.0,0.00024996,2]
[321482621,1712232639472,-209.65986286,0.00024997,2]
[321482622,1712232639481,-695.40382292,0.00024998,2]
[321482623,1712232639490,-552.92538597,0.00024998,2]
[321482624,1712232639500,-1419.20613469,0.00024998,2]
[321482625,1712232639512,-601.95871336,0.00024998,2]
[321482626,1712232639522,-155.0,0.00024998,2]
[321482627,1712232639531,-422.05453628,0.00024998,2]
[321482628,1712232639540,-201.4196466,0.00024998,2]
[321482629,1712232639550,-4461.4790525,0.00024998,2]
[321482630,1712232639559,-447.6930222,0.00024998,2]
[321482631,1712232639568,-1671373.84595139,0.00024998,2]
[321482632,1712232639577,-345.37939812,0.00024998,2]
[321482633,1712232639586,-2984.45602076,0.00024998,2]
[321482634,1712232639596,-156.07360719,0.00024998,2]
[321482635,1712232639605,-529.0753707,0.00024999,2]
[321482636,1712232639615,-35121.69823449,0.00024999,2]
[321482637,1712232639624,-1614.55918904,0.00024999,2]
[321482638,1712232639633,-233.55159464,0.00025,2]
[321482639,1712232639642,-18792487.10190503,0.00025,2]
[321482640,1712232639651,-482.81,0.00025,2]
[321482641,1712232639661,-155.0,0.00025,2]
[321482642,1712232639670,-603.13,0.00025,2]
[321482643,1712232639679,-467.85,0.00025,2]
[321482644,1712232639689,-2601.01958159,0.00025,2]
[321482645,1712232639697,-2264460.7256302,0.00025,2]
[321482646,1712232639710,-337504.39300401,0.00025,2]
[321482647,1712232639718,-286.38407441,0.00025,2]
[321482648,1712232639728,-187.75884954,0.00025,2]
[321482649,1712232639736,-2683.91038238,0.00025,2]
[321482650,1712232639745,-2030.65842961,0.00025,2]
[321482651,1712232639754,-127609.53220527,0.00025,2]
[321482652,1712232639763,-300.0,0.00025,3]
[321482653,1712232639773,-150.02,0.00025088,2]
[321482654,1712232639782,-13009.49840809,0.000251,2]
[321482655,1712232639791,-3160.74718481,0.000251,2]
[321482656,1712232639800,-158.83,0.00025162,2]
[321482657,1712232639809,-176.65,0.00026266,2]
[321482658,1712232639819,-1023.93,0.00026303,2]
[321482659,1712232639828,-3775.43,0.00026478,2]
[321482660,1712232639837,-1748.0,0.000266,2]
[321482661,1712232639846,-374.0,0.000266,2]
[321482662,1712232639856,-436.84,0.00026616,2]
[321482663,1712232639868,-350.0,0.00027,3]
[321482664,1712232639877,-179.1344671,0.00027397,2]
[321482665,1712232639887,-250.0,0.00027397,2]
[321482666,1712232639897,-178.96,0.00028485,2]
[321482667,1712232639906,-1023.93,0.00028567,2]
[321482668,1712232639917,-560.73809275,0.00029,2]
[321482669,1712232639928,-400.0,0.00029,3]
[321482670,1712232639939,-3775.43,0.00029217,2]
[321482671,1712232639949,-379.663,0.00029396,2]
[321482672,1712232639959,-4786.0,0.00029396,2]
[321482673,1712232639969,-2550.626,0.00029396,2]
[321482674,1712232639978,-300.0,0.00029475,2]
[321482675,1712232639987,-150.0,0.00029475,2]
[321482676,1712232639997,-1000.0,0.00029475,2]
[321482677,1712232640006,-300.0,0.00029475,2]
[321482678,1712232640015,-151.825,0.00029475,2]
[321482679,1712232640024,-1631.0,0.00029475,2]
[321482680,1712232640033,-2431.0,0.00029475,2]
[321482681,1712232640043,-214.0,0.00029475,2]
[321482682,1712232640053,-207.0,0.00029475,2]
[321482683,1712232640063,-441.09329125,0.000295,3]
[321482684,1712232640072,-814.0,0.000299,5]
[321482685,1712232640082,-800.0,0.00029973,2]
[321482686,1712232640092,-2640.21942399,0.0002999,2]
[321482687,1712232640102,-3206.28076084,0.0003,2]
[321482688,1712232640114,-930.69999968,0.0003,4]
[321482689,1712232640124,-606.74427312,0.0003,4]
[321482690,1712232640133,-155.0,0.0003,2]
[321482691,1712232640144,-405.14841286,0.0003,4]
[321482693,1712232640155,-200.33745626,0.0003,4]
[321482694,1712232640164,-19294.12077171,0.0003,4]
[321482695,1712232640173,-1001.92,0.0003,2]
[321482696,1712232640182,-305.96,0.0003,2]
[321482697,1712232640190,-1637.72617297,0.00030291,28]
[321482698,1712232640200,-1023.93,0.0003083,2]
[321482700,1712232640209,-1000.0,0.0003085,2]
[321482702,1712232640218,-450.0,0.00031,3]
[321482704,1712232640228,-1001.92,0.00031185,2]
[321482707,1712232640237,-305.96,0.00031305,2]
[321482709,1712232640247,-180.0,0.00031342,2]
[321482712,1712232640256,-195.13,0.00031644,2]
[321482713,1712232640266,-331.73521384,0.00032,4]
[321482714,1712232640276,-1001.92,0.0003237,2]
[321482715,1712232640285,-2369.0,0.00032396,2]
[321482716,1712232640295,-1631.0,0.00032475,2]
[321482717,1712232640304,-2408.0,0.00032475,2]
[321482718,1712232640313,-214.0,0.00032475,2]
[321482719,1712232640323,-207.0,0.00032475,2]
[321482721,1712232640332,-305.96,0.0003261,2]
[321482723,1712232640341,-1000.0,0.00032876,2]
[321482725,1712232640350,-1000.0,0.00032876,2]
[321482727,1712232640359,-1000.0,0.00032876,2]
[321482729,1712232640371,-1000.0,0.00032876,2]
[321482731,1712232640380,-1000.0,0.00032876,2]
[321482733,1712232640389,-1000.0,0.00032876,2]
[321482735,1712232640399,-1000.0,0.00032876,2]
[321482737,1712232640408,-1000.0,0.00032876,2]
[321482739,1712232640417,-1000.0,0.00032876,2]
[321482741,1712232640427,-1000.0,0.00032876,2]
[321482743,1712232640437,-1000.0,0.00032876,2]
[321482745,1712232640446,-1000.0,0.00032876,2]
[321482747,1712232640457,-1000.0,0.00032876,2]
[321482749,1712232640466,-1000.0,0.00032876,2]
[321482751,1712232640475,-1000.0,0.00032876,2]
[321482753,1712232640484,-1000.0,0.00032876,2]
[321482754,1712232640493,-1000.0,0.00032876,2]
[321482755,1712232640502,-1042.05888118,0.00032876,2]
[321482756,1712232640512,-156.25,0.00032877,2]
[321482757,1712232640521,-150.0,0.00032877,2]
[321482758,1712232640531,-255.05833915,0.0003297,5]
[321482759,1712232640540,-500.0,0.00033,3]
[321482760,1712232640550,-1023.93,0.00033094,2]
[321482761,1712232640559,-586.11,0.00033227,2]
[321482762,1712232640569,-1001.92,0.00033555,2]
[321482763,1712232640578,-150.0,0.00033742,2]
[321482764,1712232640587,-305.96,0.00033915,2]
[321482765,1712232640597,-304.07,0.00034178,2]
[321482766,1712232640606,-150.0,0.00034607,2]
[321482767,1712232640617,-1000.0,0.00034706,2]
[321482768,1712232640626,-1001.92,0.0003474,2]
[321482769,1712232640636,-274.27382603,0.00034839,7]
[321482770,1712232640645,-151.29625457,0.00034849,7]
[321482771,1712232640654,-157.30997332,0.00034985,7]
[321482772,1712232640665,-1281.5331215,0.00035,4]
[321482773,1712232640674,-550.0,0.00035,3]
[321482774,1712232640683,-390.55,0.00035008,2]
[321482775,1712232640693,-515.24623616,0.00035037,7]
[321482776,1712232640702,-153.87719975,0.00035119,7]
[321482777,1712232640712,-293.61514878,0.00035135,7]
[321482778,1712232640721,-154.83181916,0.00035161,7]
[321482779,1712232640731,-305.96,0.0003522,2]
[321482780,1712232640740,-153.45332323,0.00035278,7]
[321482781,1712232640749,-1023.93,0.00035358,2]
[321482782,1712232640758,-156.49539265,0.00035404,7]
[321482783,1712232640767,-158.07,0.00035456,2]
[321482784,1712232640776,-150.0,0.00035472,2]
[321482785,1712232640786,-236.0,0.00035475,2]
[321482786,1712232640795,-214.0,0.00035475,2]
[321482787,1712232640804,-207.0,0.00035475,2]
[321482788,1712232640813,-153.87719975,0.00035548,7]
[321482789,1712232640823,-1997.0,0.00035616,2]
[321482790,1712232640832,-159.12958476,0.00035625,7]
[321482791,1712232640842,-274.27382603,0.00035696,7]
[321482792,1712232640852,-515.24623616,0.00035851,7]
[321482793,1712232640862,-515.24623616,0.00035867,7]
[321482794,1712232640872,-154.83181916,0.00035886,7]
[321482795,1712232640882,-603.13,0.000359,7]
[321482796,1712232640891,-467.85,0.000359,2]
[321482797,1712232640901,-155.26020619,0.00035908,7]
[321482798,1712232640910,-1001.92,0.00035925,2]
[321482799,1712232640919,-157.30997332,0.00035959,7]
[321482800,1712232640929,-10000.0,0.00036,3]
[321482801,1712232640939,-611.35104216,0.00036,2]
[321482802,1712232640948,-151.0,0.00036012,30]
[321482803,1712232640958,-159.12958476,0.00036089,7]
[321482805,1712232640967,-515.24623616,0.00036123,7]
[321482807,1712232640977,-163.19664356,0.00036217,7]
[321482809,1712232640987,-515.24623616,0.00036332,7]
[321482810,1712232640997,-150.0,0.00036337,2]
[321482811,1712232641006,-155.26020619,0.00036431,7]
[321482812,1712232641015,-153.82631398,0.00036442,7]
[321482813,1712232641025,-156.49539265,0.00036524,7]
[321482814,1712232641035,-305.96,0.00036525,2]
[321482815,1712232641044,-151.0,0.00036747,7]
[321482816,1712232641053,-154.83181916,0.00036866,7]
[321482817,1712232641062,-4783.51462811,0.00037,4]
[321482818,1712232641071,-600.0,0.00037,3]
[321482819,1712232641081,-293.61514878,0.00037019,7]
[321482820,1712232641090,-159.12958476,0.00037065,7]
[321482821,1712232641100,-1001.92,0.0003711,2]
[321482822,1712232641109,-150.0,0.00037203,2]
[321482823,1712232641122,-603.13,0.000374,7]
[321482824,1712232641131,-467.85,0.000374,2]
[321482825,1712232641141,-156.09819117,0.00037415,7]
[321482826,1712232641151,-151.0,0.00037497,4]
[321482827,1712232641161,-515.24623616,0.00037546,7]
[321482828,1712232641172,-156.49539265,0.00037548,7]
[321482829,1712232641182,-274.27382603,0.00037573,7]
[321482830,1712232641192,-519.43,0.00037578,2]
[321482831,1712232641201,-300.0,0.00037578,2]
[321482832,1712232641211,-834.16,0.00037578,2]
[321482833,1712232641220,-156.97,0.00037578,2]
[321482834,1712232641230,-244.73,0.00037578,2]
[321482835,1712232641240,-150.0,0.00037578,2]
[321482836,1712232641250,-688.58,0.00037578,2]
[321482837,1712232641260,-519.43,0.00037578,2]
[321482838,1712232641270,-150.0,0.00037578,2]
[321482839,1712232641280,-519.43,0.00037578,2]
[321482840,1712232641289,-150.0,0.00037578,2]
[321482841,1712232641298,-150.0,0.00037578,2]
[321482842,1712232641308,-150.0,0.00037578,2]
[321482843,1712232641317,-150.0,0.00037578,2]
[321482844,1712232641326,-153.87719975,0.00037592,7]
[321482845,1712232641336,-1023.93,0.00037622,2]
[321482846,1712232641345,-154.83181916,0.00037645,7]
[321482847,1712232641685,-155.26020619,0.00037765,7]
[321482848,1712232641716,-154.83181916,0.00037814,7]
[321482849,1712232641725,-305.96,0.0003783,2]
[321482850,1712232641735,-436.84,0.00037849,2]
[321482851,1712232641745,-274.27382603,0.0003787,7]
[321482852,1712232641754,-155.54109467,0.00037999,7]
[321482853,1712232641763,-392.369205,0.00038,12]
[321482854,1712232641773,-1000.0,0.00038,2]
[321482855,1712232641783,-1476.03,0.00038027,15]
[321482856,1712232641792,-157.30997332,0.00038063,7]
[321482857,1712232641801,-150.0,0.00038068,2]
[321482858,1712232641811,-165.08125156,0.00038135,3]
[321482859,1712232641821,-500.0,0.00038213,10]
[321482860,1712232641832,-153.87719975,0.00038237,7]
[321482861,1712232641841,-151.0,0.00038263,2]
[321482862,1712232641851,-1001.92,0.00038295,2]
[321482863,1712232641862,-153.87719975,0.00038323,7]
[321482864,1712232641872,-156.49539265,0.00038325,7]
[321482865,1712232641881,-293.61514878,0.00038346,7]
[321482866,1712232641890,-515.24623616,0.00038441,7]
[321482867,1712232641899,-519.43,0.00038473,2]
[321482868,1712232641909,-697.24,0.00038473,2]
[321482869,1712232641919,-150.0,0.00038473,2]
[321482870,1712232641929,-300.0,0.00038473,2]
[321482871,1712232641939,-150.0,0.00038473,2]
[321482872,1712232641949,-300.0,0.00038473,2]
[321482873,1712232641960,-417.08,0.00038473,2]
[321482874,1712232641971,-150.0,0.00038473,2]
[321482875,1712232641981,-300.0,0.00038473,2]
[321482876,1712232641990,-213.576,0.00038475,2]
[321482877,1712232642000,-184.247,0.00038475,2]
[321482878,1712232642010,-490.11815053,0.000385,4]
[321482879,1712232642020,-293.61514878,0.00038503,7]
[321482880,1712232642030,-1124.61924,0.00038521,2]
[321482881,1712232642041,-35792.42439967,0.00038524,7]
[321482882,1712232642050,-155.0,0.00038524,2]
[321482883,1712232642061,-1600.45488383,0.00038524,5]
[321482884,1712232642071,-200.0,0.00038524,2]
[321482885,1712232642082,-155.76223834,0.00038524,2]
[321482886,1712232642093,-511.83608368,0.00038524,4]
[321482887,1712232642104,-200.0,0.00038524,2]
[321482888,1712232642118,-1000.0,0.00038562,2]
[321482889,1712232642128,-153.87719975,0.00038567,7]
[321482890,1712232642138,-155.0,0.0003858,7]
[321482891,1712232642149,-1456.18276137,0.0003867,2]
[321482892,1712232642158,-151.29625457,0.00038677,7]
[321482893,1712232642167,-155.97526314,0.000387,4]
[321482894,1712232642176,-603.13,0.000387,7]
[321482895,1712232642186,-467.85,0.000387,7]
[321482896,1712232642195,-154.06850799,0.00038781,7]
[321482897,1712232642204,-4065.34553289,0.000389,15]
[321482898,1712232642213,-200.0,0.00038909,2]
[321482899,1712232642223,-150.0,0.00038933,2]
[321482900,1712232642232,-153.87719975,0.00038935,7]
[321482901,1712232642241,-200.0,0.00038946,15]
[321482902,1712232642251,-800.0,0.00038946,15]
[321482903,1712232642261,-500.0,0.00038946,20]
[321482904,1712232642270,-293.61514878,0.00038968,7]
[321482905,1712232642280,-1876.61601221,0.0003899,3]
[321482906,1712232642289,-1211.0,0.00039,4]
[321482907,1712232642298,-1000.0,0.00039,5]
[321482908,1712232642308,-999.0,0.00039,2]
[321482909,1712232642317,-7263.28347,0.00039,2]
[321482910,1712232642327,-482.81,0.00039,7]
[321482911,1712232642337,-15000.0,0.00039,2]
[321482912,1712232642346,-500.0,0.00039,7]
[321482913,1712232642355,-500.0,0.00039,7]
[321482914,1712232642369,-500.0,0.00039,7]
[321482915,1712232642379,-500.0,0.00039,7]
[321482916,1712232642388,-500.0,0.00039,7]
[321482917,1712232642398,-500.0,0.00039,7]
[321482918,1712232642407,-500.0,0.00039,7]
[321482919,1712232642417,-500.0,0.00039,7]
[321482920,1712232642427,-500.0,0.00039,7]
[321482921,1712232642440,-500.0,0.00039,7]
[321482922,1712232642450,-500.0,0.00039,7]
[321482923,1712232642459,-500.0,0.00039,7]
[321482924,1712232642469,-500.0,0.00039,7]
[321482925,1712232642479,-500.0,0.00039,7]
[321482926,1712232642488,-500.0,0.00039,7]
[321482927,1712232642497,-500.0,0.00039,7]
[321482928,1712232642507,-500.0,0.00039,7]
[321482929,1712232642516,-500.0,0.00039,7]
[321482930,1712232642525,-500.0,0.00039,7]
[321482931,1712232642534,-500.0,0.00039,7]
[321482932,1712232642543,-500.0,0.00039,7]
[321482933,1712232642553,-500.0,0.00039,7]
[321482934,1712232642562,-500.0,0.00039,7]
[321482935,1712232642571,-500.0,0.00039,7]
[321482936,1712232642581,-500.0,0.00039,7]
[321482937,1712232642591,-500.0,0.00039,7]
[321482938,1712232642600,-500.0,0.00039,7]
[321482939,1712232642610,-500.0,0.00039,7]
[321482940,1712232642622,-500.0,0.00039,7]
[321482941,1712232642631,-500.0,0.00039,7]
[321482942,1712232642641,-500.0,0.00039,7]
[321482943,1712232642650,-500.0,0.00039,7]
[321482944,1712232642659,-500.0,0.00039,7]
[321482945,1712232642669,-500.0,0.00039,7]
[321482946,1712232642678,-500.0,0.00039,7]
[321482947,1712232642687,-500.0,0.00039,7]
[321482948,1712232642696,-500.0,0.00039,7]
[321482949,1712232642705,-500.0,0.00039,7]
[321482950,1712232642715,-500.0,0.00039,7]
[321482951,1712232642724,-500.0,0.00039,7]
[321482952,1712232642733,-500.0,0.00039,7]
[321482953,1712232642742,-500.0,0.00039,7]
[321482954,1712232642751,-500.0,0.00039,7]
[321482955,1712232642761,-500.0,0.00039,7]
[321482956,1712232642770,-500.0,0.00039,7]
[321482957,1712232642779,-500.0,0.00039,7]
[321482958,1712232642788,-500.0,0.00039,7]
[321482959,1712232642797,-500.0,0.00039,7]
[321482960,1712232642806,-500.0,0.00039,7]
[321482961,1712232642815,-500.0,0.00039,7]
[321482962,1712232642825,-500.0,0.00039,7]
[321482963,1712232642834,-500.0,0.00039,7]
[321482964,1712232642843,-500.0,0.00039,7]
[321482965,1712232642852,-500.0,0.00039,7]
[321482966,1712232642862,-500.0,0.00039,7]
[321482967,1712232642872,-500.0,0.00039,7]
[321482968,1712232642881,-500.0,0.00039,7]
[321482969,1712232642890,-500.0,0.00039,7]
[321482970,1712232642899,-500.0,0.00039,7]
[321482971,1712232642909,-500.0,0.00039,7]
[321482972,1712232642923,-500.0,0.00039,7]
[321482973,1712232642932,-500.0,0.00039,7]
[321482974,1712232642941,-307.96,0.00039,7]
[321482975,1712232642950,-469.49,0.00039,7]
[321482976,1712232642961,-500.0,0.00039,7]
[321482977,1712232642970,-2000.0,0.00039,4]
[321482978,1712232642980,-650.0,0.00039,3]
[321482979,1712232642989,-1000.0,0.00039,2]
[321482980,1712232642998,-169.67446293,0.00039056,7]
[321482981,1712232643008,-150.0,0.0003906,2]
[321482982,1712232643017,-1500.0,0.00039065,2]
[321482983,1712232643026,-154.83181916,0.00039098,7]
[321482984,1712232643036,-572.409562,0.00039135,2]
[321482986,1712232643046,-150.0,0.0003915,2]
[321482988,1712232643056,-154.06850799,0.00039198,7]
[321482989,1712232643069,-1124.61924,0.000392,2]
[321482991,1712232643078,-1000.0,0.000392,7]
[321482993,1712232643088,-150.0,0.00039214,2]
[321482995,1712232643098,-150.0,0.00039215,2]
[321482997,1712232643108,-150.0,0.00039228,2]
[321482999,1712232643120,-293.61514878,0.0003923,7]
[321483000,1712232643130,-150.0,0.00039261,2]
[321483002,1712232643139,-150.0,0.00039286,2]
[321483004,1712232643148,-554.53127271,0.00039289,11]
[321483005,1712232643158,-200.0,0.00039298,2]
[321483006,1712232643167,-150.0,0.000393,2]
[321483007,1712232643176,-150.0,0.0003931,2]
[321483008,1712232643185,-518.98,0.00039323,2]
[321483009,1712232643195,-417.08,0.00039323,2]
[321483010,1712232643204,-348.31,0.00039323,2]
[321483011,1712232643213,-161.81,0.00039323,2]
[321483013,1712232643223,-150.0,0.00039323,2]
[321483015,1712232643233,-417.08,0.00039323,2]
[321483016,1712232643243,-348.31,0.00039323,2]